[Event "Berlin Championship 2024"]
[Site "Berlin"]
[Date "2024.03.31"]
[Round "2.6"]
[White "Baldauf, Marco"]
[Black "Petersen, Marcel"]
[Result "1-0"]
[ECO "D34"]
[WhiteElo "2481"]
[BlackElo "2133"]
[Annotator "TA"]
[PlyCount "161"]
[EventDate "2024.03.30"]
[EventType "swiss"]
[EventCountry "GER"]
[SourceTitle "playchess.com"]
[Source "ChessBase"]
[SourceQuality "1"]
[TimeControl "40/5400+30:1800+30"]

{[%evp 19,161,39,57,42,58,40,64,56,63,56,56,60,56,54,84,54,51,51,50,46,48,44,39,42,37,44,19,35,94,44,43,45,34,-61,-33,-17,-17,-52,0,0,0,-4,0,0,0,0,0,0,0,-13,0,-19,86,8,8,3,602,597,551,460,417,178,434,166,158,81,81,74,63,66,629,617,1024,1012,996,297,295,114,114,104,104,106,106,102,108,104,103,70,70,70,70,70,70,70,70,63,56,56,220,288,672,608,336,8,1066,1066,986,986,377,8,29969,29970,29970,29971,29971,29972,29972,29973,29973,29974,29974,29975,29975,29976,29978,29974,29974,0,29978,29976,29976,29977,29977,0,29977,29977,29983,29984,29983,29984,29988,29989,29989,29990]} 1. Nf3 {[%emt 0:00:05]} Nf6 {[%emt 0:00:31]} 2. c4 {[%emt 0:00:13]} c5 {[%emt 0:00:17]} 3. g3 {[%emt 0:02:01]} Nc6 {[%emt 0:00:49]} 4. Bg2 {[%emt 0:01:08]} e6 {[%emt 0:01:31]} 5. O-O {[%emt 0:01:24]} Be7 {[%emt 0:05:16]} 6. d4 {[%emt 0:01:00]} cxd4 {[%emt 0:00:10]} 7. Nxd4 {[%emt 0:00:04]} O-O {[%emt 0:01:46]} 8. Nc3 {[%emt 0:04:39]} d5 {[%emt 0:03:03]} 9. cxd5 {[%emt 0:01:36]} exd5 {[%emt 0:00:19]} 10. Be3 {[%emt 0:01:42]} Be6 {[%emt 0:06:00]} 11. Qa4 {[%emt 0:12:11]} Qd7 {[%emt 0:07:40]} 12. Rfd1 {[%emt 0:05:39]} Rfd8 {[%emt 0:02:43]} 13. Nb3 {[%emt 0:18:40] White is slightly better.} Rac8 {[%emt 0:15:56]} 14. Nc5 {[%emt 0:05:59] White is much more active.} (14. Bxa7 $2 {loses.} Ra8 15. a3 Rxa7 $19 (15... Nxa7 $2 16. Qxd7 Bxd7 17. Bxd5 $19)) 14... Bxc5 {[%emt 0:00:22]} 15. Bxc5 {[%emt 0:00:02]} b6 {[%emt 0:02:31]} 16. Be3 {[%emt 0:02:07] This pair of bishops is nice.} Na5 {[%emt 0:02:16]} 17. Qh4 {[%emt 0:06:21]} (17. Qxd7 {simplifies} Rxd7 18. Nb5 Nc4 19. Rac1) 17... Rc4 $1 {[%emt 0:03:28]} 18. Rd4 {[%emt 0:00:27]} Ng4 {[%emt 0:04:31]} 19. Rxc4 {[%emt 0:05:14]} Nxc4 {[%emt 0:00:47]} 20. Bd4 {[%emt 0:00:10]} f6 $1 {[%emt 0:03:24]} (20... Nxb2 21. h3 Nh6 22. Qg5) 21. h3 {[%emt 0:02:47]} Nge5 {[%emt 0:01:32]} 22. b3 {[%emt 0:03:55]} Ng6 {[%emt 0:04:30]} 23. Qh5 {[%emt 0:00:07]} Nce5 {[%emt 0:00:32]} ({Black should play} 23... Na5 $14) 24. e3 {[%emt 0:01:00]} (24. Rd1 $16) 24... Nc6 {[%emt 0:05:06]} 25. Rd1 {[%emt 0:01:19][%cal Ba1d1,Bd1d4,Bd4a4,Ba4a7,Ba7c7][%mdl 32]} Nge7 {[%emt 0:00:37]} 26. g4 {[%emt 0:05:34]} (26. Nb5 $14) 26... Bf7 {[%emt 0:02:15]} 27. Qh4 {[%emt 0:00:13]} Nxd4 {[%emt 0:00:17]} 28. Rxd4 {[%emt 0:02:43]} Qc7 {[%emt 0:02:05]} (28... Rc8 $1 $15 29. Ne2 Rc2) 29. Ne2 $11 {[%emt 0:00:52]} Qc2 {[%emt 0:00:41][%csl LRa2,LRe2]} 30. Bf1 {[%emt 0:01:36]} Qxa2 {[%emt 0:01:27]} (30... h6 {simplifies} 31. Qg3 a5 32. Ra4 Ng6) 31. Ra4 {[%emt 0:00:31]} Qxb3 {[%emt 0:00:05]} 32. Rxa7 {[%emt 0:00:03]} Nc6 {[%emt 0:01:36]} 33. Rc7 {[%emt 0:04:01]} Ne5 {[%emt 0:00:59]} 34. Nd4 {[%emt 0:00:03] Prevents Nf3+. Hoping for Rxf7.} Qd1 {[%emt 0:00:45][%cal Od1d4] Threatens to win with ...Qxd4!} 35. Kg2 {[%emt 0:04:41]} Nd3 {[%emt 0:06:02]} (35... Bg6 $11 36. Qg3 Be4+ 37. f3 Bg6) 36. g5 {[%emt 0:02:24]} (36. Qg3 $1 $16 Rf8 37. Bxd3 Qxd3 38. Rb7) 36... Ne1+ {[%emt 0:00:59]} 37. Kg3 {[%emt 0:00:13] Chess con chili.} fxg5 $2 {[%emt 0:04:44][%mdl 8192]} (37... Nc2 $11 38. Rxc2 Qxf1 39. gxf6 Qg1+ 40. Kf3 gxf6) 38. Qxg5 $18 {[%emt 0:00:35]} Rf8 {[%emt 0:00:40]} 39. Be2 {[%emt 0:02:10] Dodges Nf3} Qa1 {[%emt 0:01:39]} 40. Kh2 {[%emt 0:03:35]} (40. Bh5 $142 {White threatens Bxf7+ and mate.} g6 41. Bg4) 40... h6 $2 {[%emt 0:06:58]} (40... Qb2 41. Kg3 Qa1) 41. Qg1 $2 {[%emt 0:05:04]} (41. Qe7) 41... b5 {[%emt 0:02:40]} 42. Nxb5 {[%emt 0:06:47]} (42. f4 $142) 42... Bg6 $16 {[%emt 0:08:14]} 43. Nd4 {[%emt 0:05:00][%cal Oe2h5]} Rf7 {[%emt 0:01:57]} 44. Rxf7 {[%emt 0:00:09]} Kxf7 {[%emt 0:00:47][%mdl 8192]} (44... Bxf7 $14 45. Qg3 Qb2) 45. Qg4 $18 {[%emt 0:01:03] Strongly threatening Qe6+.} Qb1 {[%emt 0:10:02]} 46. Qe6+ {[%emt 0:05:57]} Kf8 {[%emt 0:00:06]} 47. Qxd5 $2 {[%emt 0:01:36]} (47. Qd6+ Kg8 48. Ne6 (48. Qxd5+ Bf7 $16)) 47... Qe4 {[%emt 0:01:10]} 48. Qd8+ {[%emt 0:02:47]} (48. Ne6+ $18 {and the rest is easy.} Ke7 49. Qxe4 Bxe4 50. Nxg7) 48... Be8 $16 {[%emt 0:00:06][%csl Ge1][%cal Re4g2]} 49. Qd6+ {[%emt 0:00:03]} Kg8 {[%emt 0:00:10][%csl Ge1][%cal Re4g2]} 50. Bc4+ $1 {[%emt 0:00:44]} Bf7 {[%emt 0:01:18]} 51. Bxf7+ {[%emt 0:00:28]} Kxf7 {[%emt 0:00:05][%csl Ge1][%cal Re4g2][%mdl 4096] Endgame. KQN-KQN} 52. Qd7+ {[%emt 0:00:12]} Kg8 {[%emt 0:00:40][%csl Ge1][%cal Re4g2]} 53. Qe6+ {[%emt 0:01:00]} Qxe6 {[%emt 0:00:07]} 54. Nxe6 $14 {[%emt 0:00:03] KN-KN} Kf7 {[%emt 0:00:33][%cal Bg8f7,Bf7f6,Bf6g7][%mdl 32]} 55. Nd4 {[%emt 0:00:02]} Kf6 {[%emt 0:00:23]} 56. Kg3 {[%emt 0:00:15]} Nd3 {[%emt 0:00:16]} 57. f3 {[%emt 0:01:23][%cal Bf2f3,Bf3f4][%mdl 32]} Ne5 {[%emt 0:01:43]} 58. f4 {[%emt 0:05:17]} Nc4 {[%emt 0:00:28] White stays focused until the end.} ({Better is} 58... Nd3 $1 $14) 59. e4 $18 {[%emt 0:01:04][%cal Be3e4,Be4e5][%mdl 32]} g5 $2 {[%emt 0:01:45]} (59... g6 60. e5+ Kf7) 60. e5+ {[%emt 0:00:03]} Kg7 {[%emt 0:00:14]} 61. h4 $2 {[%emt 0:00:56]} ({Only move:} 61. Kf3 $18) 61... gxf4+ $2 {[%emt 0:00:22][%mdl 8192]} (61... Kg6 $11) 62. Kxf4 {[%emt 0:00:01] Nf5+ is the strong threat.} Kg6 {[%emt 0:00:46]} 63. Nf5 {[%emt 0:00:56] aiming for e6.} Nb6 {[%emt 0:01:33] [#]} 64. Ng3 $2 {[%emt 0:00:19]} (64. Ne3 $1 $18) 64... h5 $2 {[%emt 0:01:08][%mdl 8192]} (64... Nd5+ $11 65. Kf3 Nc3) 65. Ke4 {[%emt 0:00:32]} Nc4 {[%emt 0:01:01]} 66. Kd5 {[%emt 0:01:30]} Ne3+ {[%emt 0:00:11]} 67. Kd6 {[%emt 0:00:18]} Nc4+ {[%emt 0:00:55] [#]} 68. Ke6 $1 {[%emt 0:00:06]} Nb6 {[%emt 0:00:45]} 69. Ne2 {[%emt 0:00:13]} Kg7 {[%emt 0:01:35]} 70. Nf4 {[%emt 0:00:08]} Nc4 {[%emt 0:00:50]} 71. Nxh5+ {[%emt 0:00:06]} Kf8 {[%emt 0:00:07]} 72. Nf6 {[%emt 0:02:14]} Kg7 {[%emt 0:00:32]} 73. Nh5+ {[%emt 0:00:04]} Kf8 $1 {[%emt 0:00:08]} 74. Nf4 {[%emt 0:00:12]} Kg7 {[%emt 0:00:43]} 75. Kd5 {[%emt 0:00:41]} Ne3+ {[%emt 0:00:39]} 76. Ke6 {[%emt 0:00:42]} Nc4 $1 {[%emt 0:00:16]} 77. h5 {[%emt 0:00:14] White mates.} Kf8 {[%emt 0:01:40]} 78. Kf6 {[%emt 0:00:17]} Nb6 {[%emt 0:00:50]} 79. e6 {[%emt 0:00:42]} Nc8 {[%emt 0:00:16]} 80. Ng6+ {[%emt 0:00:04]} Kg8 {[%emt 0:00:21]} 81. Ne7+ {[%emt 0:00:04] Weighted Error Value: White=0.49/Black=0.45.  Loses game:     	---       	Black=3      Mistake:       	White=6     	Black=5      Inaccurate:     	White=3     	Black=3      OK:         	White=21    	Black=18     Best:        	White=5     	Black=8      Strong:       	White=1     	Black=2} 1-0

[Event "Berlin Championship 2024"]
[Site "Berlin"]
[Date "2024.03.31"]
[Round "2.7"]
[White "Poltorak, Sebastian"]
[Black "Yatskar, Martin"]
[Result "1-0"]
[ECO "D32"]
[WhiteElo "2392"]
[BlackElo "2066"]
[Annotator "RC"]
[PlyCount "119"]
[EventDate "2024.03.30"]
[EventType "swiss"]
[EventCountry "GER"]
[SourceTitle "playchess.com"]
[Source "ChessBase"]
[SourceQuality "1"]
[TimeControl "40/5400+30:1800+30"]

1. d4 {[%emt 0:00:04]} d5 {[%emt 0:00:09]} 2. c4 {[%emt 0:00:07]} e6 {[%emt 0:00:04]} 3. Nc3 {[%emt 0:00:07]} c5 {[%emt 0:00:06]} 4. cxd5 {[%emt 0:00:05]} exd5 {[%emt 0:00:04]} 5. Nf3 {[%emt 0:00:08]} Nf6 {[%emt 0:00:05]} 6. Bg5 {[%emt 0:00:06]} Be6 {[%emt 0:00:06]} 7. e3 {[%emt 0:00:07]} c4 {[%emt 0:00:06]} 8. Bxf6 {[%emt 0:00:10]} gxf6 {[%emt 0:05:27]} 9. a3 {[%emt 0:00:10]} Qa5 {[%emt 0:04:00]} 10. g3 {[%emt 0:03:06]} Nc6 {[%emt 0:03:58]} 11. Bg2 {[%emt 0:00:20]} Be7 {[%emt 0:10:29]} 12. Ng1 {[%emt 0:01:18]} f5 {[%emt 0:12:32]} 13. Nh3 {[%emt 0:02:13]} Bd6 {[%emt 0:05:35]} 14. O-O {[%emt 0:07:36]} Ne7 {[%emt 0:04:08]} 15. Qc2 {[%emt 0:06:09]} h5 {[%emt 0:04:14]} 16. Nf4 {[%emt 0:06:25]} Bxf4 {[%emt 0:02:30]} 17. gxf4 {[%emt 0:00:08]} Ng6 {[%emt 0:04:07]} 18. Bh3 {[%emt 0:02:49]} Rg8 {[%emt 0:08:40]} 19. Kh1 {[%emt 0:00:08]} Ne7 {[%emt 0:00:11]} 20. Rg1 {[%emt 0:04:59]} O-O-O {[%emt 0:00:36]} 21. Qe2 {[%emt 0:01:10]} h4 {[%emt 0:00:56]} 22. Qc2 {[%emt 0:07:35]} Kb8 {[%emt 0:00:16]} 23. Ne2 {[%emt 0:00:09]} b5 {[%emt 0:03:08]} 24. Rab1 {[%emt 0:02:02]} a6 {[%emt 0:00:48]} 25. Rxg8 {[%emt 0:03:03]} Rxg8 {[%emt 0:00:05]} 26. Ng1 {[%emt 0:00:05]} Ka7 {[%emt 0:01:06]} 27. Nf3 {[%emt 0:00:32]} b4 {[%emt 0:00:34]} 28. axb4 {[%emt 0:03:01]} Qxb4 {[%emt 0:00:10]} 29. Ng1 {[%emt 0:03:30]} Rb8 {[%emt 0:01:42]} 30. Ne2 {[%emt 0:04:26]} Qb3 {[%emt 0:02:52]} 31. Qd2 {[%emt 0:01:15]} Nc6 {[%emt 0:00:10]} 32. Bf1 {[%emt 0:04:53]} Nb4 {[%emt 0:02:17]} 33. Nc1 {[%emt 0:11:52]} Qc2 {[%emt 0:03:15]} 34. Qxc2 {[%emt 0:00:01]} Nxc2 {[%emt 0:00:07]} 35. Be2 {[%emt 0:02:03]} Bd7 {[%emt 0:03:20]} 36. Kg2 {[%emt 0:05:48]} Rg8+ {[%emt 0:01:19]} 37. Kf1 {[%emt 0:00:34]} h3 {[%emt 0:02:44]} 38. Na2 {[%emt 0:03:36]} Rb8 {[%emt 0:03:42]} 39. Nc3 {[%emt 0:00:09]} Bc6 {[%emt 0:00:18]} 40. Bh5 {[%emt 0:07:30]} Rb7 {[%emt 0:00:56]} 41. Bd1 {[%emt 0:33:11]} Nb4 {[%emt 0:30:16]} 42. Ke2 {[%emt 0:01:09]} f6 {[%emt 0:06:02]} 43. b3 {[%emt 0:03:52]} a5 {[%emt 0:00:42]} 44. Kd2 {[%emt 0:03:25]} Nd3 {[%emt 0:06:33]} 45. Bc2 {[%emt 0:00:00]} Nxf2 {[%emt 0:00:00]} 46. bxc4 {[%emt 0:00:00]} Rxb1 {[%emt 0:00:00]} 47. Bxb1 {[%emt 0:00:00]} dxc4 {[%emt 0:00:00]} 48. Bxf5 {[%emt 0:00:00]} Bg2 {[%emt 0:00:00]} 49. d5 {[%emt 0:00:00]} Kb6 {[%emt 0:00:00]} 50. d6 {[%emt 0:00:00]} Bc6 {[%emt 0:00:00]} 51. Ke2 {[%emt 0:00:00]} Nd3 {[%emt 0:00:00]} 52. Bxh3 {[%emt 0:00:00]} Nb4 {[%emt 0:00:00]} 53. Be6 {[%emt 0:00:00]} a4 {[%emt 0:00:00]} 54. h4 {[%emt 0:00:00]} a3 {[%emt 0:00:00]} 55. h5 {[%emt 0:00:00]} a2 {[%emt 0:00:00]} 56. Nxa2 {[%emt 0:00:00]} Nxa2 {[%emt 0:00:00]} 57. h6 {[%emt 0:00:05]} Be4 {[%emt 0:00:00]} 58. f5 {[%emt 0:00:26]} c3 {[%emt 0:00:00]} 59. Bxa2 {[%emt 0:00:04]} Bxf5 {[%emt 0:00:00]} 60. Bg8 {[%emt 0:00:10]} 1-0

[Event "Berlin Championship 2024"]
[Site "Berlin"]
[Date "2024.03.31"]
[Round "2.8"]
[White "Jahnz, Laurin"]
[Black "Thiede, Lars"]
[Result "1-0"]
[ECO "B11"]
[WhiteElo "2051"]
[BlackElo "2388"]
[Annotator "RC"]
[PlyCount "161"]
[EventDate "2024.03.30"]
[EventType "swiss"]
[EventCountry "GER"]
[SourceTitle "playchess.com"]
[Source "ChessBase"]
[SourceQuality "1"]
[TimeControl "40/5400+30:1800+30"]

1. e4 {[%emt 1:31:00]} c6 {[%emt 0:01:46]} 2. Nc3 {[%emt 0:00:00]} d5 {[%emt 0:00:10]} 3. Nf3 {[%emt 0:00:00]} dxe4 {[%emt 0:02:22]} 4. Nxe4 {[%emt 0:00:00]} Nf6 {[%emt 0:00:06]} 5. Qe2 {[%emt 0:00:00]} Nxe4 {[%emt 0:01:51]} 6. Qxe4 {[%emt 0:00:00]} Qd5 {[%emt 0:01:13]} 7. Qh4 {[%emt 0:00:00]} Bf5 {[%emt 0:01:35]} 8. Bc4 {[%emt 0:00:00]} Qd6 {[%emt 0:02:14]} 9. d3 {[%emt 0:00:00]} e6 {[%emt 0:02:39]} 10. Bf4 {[%emt 0:00:00]} Qc5 {[%emt 0:13:07]} 11. g4 {[%emt 0:00:00]} Be4 {[%emt 0:15:06]} 12. dxe4 {[%emt 0:00:00]} Qxc4 {[%emt 0:00:09]} 13. O-O-O {[%emt 0:00:00]} Na6 {[%emt 0:04:29]} 14. a3 {[%emt 0:00:00]} Be7 {[%emt 0:09:48]} 15. Qg3 {[%emt 0:00:00]} Nc5 {[%emt 0:00:21]} 16. Nd2 {[%emt 0:00:00]} Qa2 {[%emt 0:06:44]} 17. Qc3 {[%emt 0:00:00]} Qa1+ {[%emt 0:15:00]} 18. Nb1 {[%emt 0:00:00]} Nxe4 {[%emt 0:00:17]} 19. Qd4 {[%emt 0:00:00]} Nf6 {[%emt 0:01:14]} 20. g5 {[%emt 0:00:00]} Rd8 {[%emt 0:12:16]} 21. Qxa7 {[%emt 0:00:00]} Nd5 {[%emt 0:00:16]} 22. Qxb7 {[%emt 0:00:00]} O-O {[%emt 0:03:31]} 23. Rxd5 {[%emt 0:00:00]} cxd5 {[%emt 0:00:09]} 24. Qxe7 {[%emt 0:00:00]} Rc8 {[%emt 0:00:07]} 25. Be5 {[%emt 0:00:00]} Rc6 {[%emt 0:02:18]} 26. Rd1 {[%emt 0:02:58]} Rfc8 {[%emt 0:00:09]} 27. Bc3 {[%emt 0:00:55]} Rxc3 {[%emt 0:02:44]} 28. bxc3 {[%emt 0:00:11]} Rb8 {[%emt 0:00:03]} 29. Kd2 {[%emt 0:00:59]} g6 {[%emt 0:00:14]} 30. h4 {[%emt 0:04:20]} Rxb1 {[%emt 0:01:08]} 31. Rxb1 {[%emt 0:00:01]} Qxb1 {[%emt 0:00:09]} 32. Qb4 {[%emt 0:00:38]} Qf1 {[%emt 0:00:41]} 33. Qd4 {[%emt 0:00:03]} Qa6 {[%emt 0:01:07]} 34. a4 {[%emt 0:00:09]} Qa5 {[%emt 0:00:36]} 35. Qb4 {[%emt 0:00:17]} Qa7 {[%emt 0:00:19]} 36. Ke1 {[%emt 0:00:21]} e5 {[%emt 0:01:35]} 37. a5 {[%emt 0:00:37]} d4 {[%emt 0:00:05]} 38. Qb6 {[%emt 0:00:42]} Qa8 {[%emt 0:00:01]} 39. cxd4 {[%emt 0:02:12]} Qe4+ {[%emt 0:00:40]} 40. Kd2 {[%emt 0:00:05]} Qf4+ {[%emt 0:01:39]} 41. Kd3 {[%emt 0:31:37]} Qf3+ {[%emt 0:04:11]} 42. Kc4 {[%emt 0:00:00]} Qe2+ {[%emt 0:05:07]} 43. Kb3 {[%emt 0:00:00]} exd4 {[%emt 0:22:44]} 44. Qd8+ {[%emt 0:00:00]} Kg7 {[%emt 0:00:00]} 45. Qxd4+ {[%emt 0:00:00]} Kg8 {[%emt 0:00:00]} 46. Qb6 {[%emt 0:00:00]} Qe1 {[%emt 0:00:00]} 47. Ka2 {[%emt 0:00:00]} Qe2 {[%emt 0:00:00]} 48. Kb3 {[%emt 0:00:00]} Qe1 {[%emt 0:00:00]} 49. Qd8+ {[%emt 0:00:00]} Kg7 {[%emt 0:00:00]} 50. Qf6+ {[%emt 0:00:00]} Kg8 {[%emt 0:00:00]} 51. a6 {[%emt 0:00:00]} Qb1+ {[%emt 0:00:00]} 52. Qb2 {[%emt 0:00:00]} Qe1 {[%emt 0:00:00]} 53. Qa2 {[%emt 0:00:00]} Qxf2 {[%emt 0:00:00]} 54. Qa5 {[%emt 0:00:00]} Qe3+ {[%emt 0:00:00]} 55. Ka2 {[%emt 0:01:42]} Qe4 {[%emt 0:00:21]} 56. Qd8+ {[%emt 0:02:38]} Kg7 {[%emt 0:00:07]} 57. Qd3 {[%emt 0:00:39]} Qa4+ {[%emt 0:04:56]} 58. Kb2 {[%emt 0:00:05]} h5 {[%emt 0:01:24]} 59. gxh6+ {[%emt 0:02:33]} Kxh6 {[%emt 0:00:16]} 60. Qe3+ {[%emt 0:00:42]} Kh7 {[%emt 0:00:02]} 61. Qb6 {[%emt 0:00:48]} Qxh4 {[%emt 0:01:02]} 62. a7 {[%emt 0:00:21]} Qe4 {[%emt 0:00:05]} 63. Qb8 {[%emt 0:04:03]} Qd4+ {[%emt 0:00:07]} 64. Kb3 {[%emt 0:00:14]} Qd5+ {[%emt 0:00:14]} 65. c4 {[%emt 0:00:34]} Qd3+ {[%emt 0:00:49]} 66. Kb4 {[%emt 0:00:04]} Qd2+ {[%emt 0:00:21]} 67. Kc5 {[%emt 0:00:43]} Qe3+ {[%emt 0:00:41]} 68. Kc6 {[%emt 0:00:13]} Qe6+ {[%emt 0:01:10]} 69. Kb5 {[%emt 0:00:18]} Qd7+ {[%emt 0:00:05]} 70. Ka5 {[%emt 0:00:11]} Qd2+ {[%emt 0:00:13]} 71. Qb4 {[%emt 0:01:27]} Qa2+ {[%emt 0:01:34]} 72. Kb6 {[%emt 0:00:05]} Qg2 {[%emt 0:00:17]} 73. c5 {[%emt 0:00:30]} Qa8 {[%emt 0:00:43]} 74. c6 {[%emt 0:00:14]} Qd8+ {[%emt 0:00:32]} 75. c7 {[%emt 0:00:12]} Qc8 {[%emt 0:00:00]} 76. Qh4+ {[%emt 0:00:09]} Kg7 {[%emt 0:00:07]} 77. Qd4+ {[%emt 0:00:03]} Kh7 {[%emt 0:00:05]} 78. Qf6 {[%emt 0:00:25]} Qf8 {[%emt 0:00:28]} 79. Qh4+ {[%emt 0:00:19]} Kg7 {[%emt 0:00:02]} 80. Kb7 {[%emt 0:00:11]} Qc5 {[%emt 0:01:04]} 81. Qh8+ {[%emt 0:00:42]} 1-0

[Event "Berlin Championship 2024"]
[Site "Berlin"]
[Date "2024.04.01"]
[Round "3.1"]
[White "Polzin, Rainer"]
[Black "Lagunow, Raphael"]
[Result "0-1"]
[ECO "B30"]
[WhiteElo "2401"]
[BlackElo "2421"]
[Annotator "ChessBase"]
[PlyCount "76"]
[EventDate "2024.03.30"]
[EventType "swiss"]
[EventCountry "GER"]
[SourceTitle "playchess.com"]
[Source "ChessBase"]
[SourceQuality "1"]
[TimeControl "40/5400+30:1800+30"]

1. e4 {[%emt 0:00:04]} c5 {[%emt 0:00:05]} 2. Nc3 {[%emt 0:00:03]} Nc6 {[%emt 0:00:08]} 3. Bb5 {[%emt 0:00:05]} Nd4 {[%emt 0:00:04]} 4. Nf3 {[%emt 0:00:06]} e6 {[%emt 0:00:23]} 5. O-O {[%emt 0:02:44]} a6 6. Bd3 {[%emt 0:00:27]} Nc6 {[%emt 0:00:17]} 7. Re1 {[%emt 0:03:29]} g5 {[%emt 0:06:12]} 8. Kh1 {[%emt 0:32:51]} g4 {[%emt 0:03:07]} 9. Ng1 {[%emt 0:01:06]} h5 {[%emt 0:01:43]} 10. f4 {[%emt 0:08:23]} Qc7 {[%emt 0:12:44]} 11. Rf1 {[%emt 0:21:48]} b5 {[%emt 0:09:08]} 12. b3 {[%emt 0:04:41]} Bb7 {[%emt 0:00:30]} 13. Bb2 {[%emt 0:00:02]} Rh6 {[%emt 0:00:08]} 14. Qe2 {[%emt 0:10:00]} d6 {[%emt 0:24:21]} 15. a4 {[%emt 0:00:34]} b4 {[%emt 0:03:09]} 16. Nd1 {[%emt 0:00:02]} Nf6 {[%emt 0:05:44]} 17. Ne3 {[%emt 0:03:45]} Nd4 {[%emt 0:04:41]} 18. Bxd4 {[%emt 0:00:30]} cxd4 {[%emt 0:00:05]} 19. Nc4 {[%emt 0:00:07]} d5 {[%emt 0:00:43]} 20. exd5 {[%emt 0:00:33]} Bxd5 {[%emt 0:00:06]} 21. Ne5 {[%emt 0:01:08]} Bd6 {[%emt 0:04:10]} 22. Rae1 {[%emt 0:00:52]} Kf8 {[%emt 0:07:54]} 23. Bc4 {[%emt 0:00:11]} Bb7 {[%emt 0:00:33]} 24. d3 {[%emt 0:04:44]} h4 {[%emt 0:02:54]} 25. Nxg4 {[%emt 0:02:42]} Nxg4 {[%emt 0:00:11]} 26. Qxg4 {[%emt 0:00:01]} Rg6 {[%emt 0:00:07]} 27. Qxg6 {[%emt 0:00:02]} fxg6 {[%emt 0:00:06]} 28. Rxe6 {[%emt 0:00:14]} Kg7 {[%emt 0:12:00]} 29. f5 {[%emt 0:00:00]} Rf8 {[%emt 0:00:14]} 30. Rxg6+ {[%emt 0:00:19]} Kh7 {[%emt 0:00:00]} 31. Be6 {[%emt 0:02:48]} Qxc2 {[%emt 0:01:48]} 32. Nh3 {[%emt 0:00:31]} Be7 {[%emt 0:00:41]} 33. Nf4 {[%emt 0:01:34]} h3 {[%emt 0:00:15]} 34. Kg1 {[%emt 0:00:20]} hxg2 {[%emt 0:02:14]} 35. Nxg2 {[%emt 0:00:01]} Bd6 {[%emt 0:00:24]} 36. Rg4 {[%emt 0:00:42]} Qe2 {[%emt 0:00:41]} 37. Rh4+ {[%emt 0:00:55]} Kg7 {[%emt 0:00:02]} 38. Nf4 {[%emt 0:00:02]} Bxf4 {[%emt 0:00:22]} 0-1